[Event "*** Titled Tuesday Blitz"]
[Site "Chess.com"]
[Date "2021.02.09"]
[Round "2"]
[White "Yaacovn"]
[Black "Gerodot71"]
[Result "1-0"]
[WhiteElo "2842"]
[BlackElo "2516"]
[TimeControl "180+1"]
[EndTime "10:17:43 PST"]
[Termination "Yaacovn won on time"]

1. d4 {[%clk 0:02:59.6]} 1... Nf6 {[%clk 0:03:00]} 2. e3 {[%clk 0:02:57.2]} 2...
d5 {[%clk 0:02:59.3]} 3. Bd3 {[%clk 0:02:56.1]} 3... c5 {[%clk 0:02:55.5]} 4. c3
{[%clk 0:02:52.9]} 4... Nc6 {[%clk 0:02:47.1]} 5. f4 {[%clk 0:02:49.3]} 5... g6
{[%clk 0:02:40.4]} 6. Nf3 {[%clk 0:02:47.5]} 6... Bg7 {[%clk 0:02:40.2]} 7. O-O
{[%clk 0:02:44.8]} 7... O-O {[%clk 0:02:38.7]} 8. Nbd2 {[%clk 0:02:43.5]} 8...
b6 {[%clk 0:02:33.1]} 9. Ne5 {[%clk 0:02:42.5]} 9... Bb7 {[%clk 0:02:28.7]} 10.
b3 {[%clk 0:02:42.6]} 10... Nd7 {[%clk 0:02:24.8]} 11. Ba3 {[%clk 0:02:40.4]}
11... Rc8 {[%clk 0:02:22]} 12. Qf3 {[%clk 0:02:38.1]} 12... e6 {[%clk
0:02:17.7]} 13. Qh3 {[%clk 0:02:36.5]} 13... Qe7 {[%clk 0:01:38.9]} 14. Ndf3
{[%clk 0:02:29.9]} 14... f6 {[%clk 0:01:28.1]} 15. Nxg6 {[%clk 0:02:12.5]} 15...
hxg6 {[%clk 0:01:27.6]} 16. Bxg6 {[%clk 0:02:13.1]} 16... Rfd8 {[%clk
0:01:22.5]} 17. Ng5 {[%clk 0:02:05.7]} 17... Nf8 {[%clk 0:01:06]} 18. Bf7+
{[%clk 0:01:56.5]} 18... Qxf7 {[%clk 0:01:04.6]} 19. Nxf7 {[%clk 0:01:57.4]}
19... Kxf7 {[%clk 0:01:05.5]} 20. dxc5 {[%clk 0:01:56.5]} 20... f5 {[%clk
0:00:59.6]} 21. cxb6 {[%clk 0:01:55]} 21... axb6 {[%clk 0:01:00.5]} 22. g4
{[%clk 0:01:43.2]} 22... fxg4 {[%clk 0:00:56.8]} 23. Qxg4 {[%clk 0:01:39.8]}
23... Bxc3 {[%clk 0:00:26.1]} 24. f5 {[%clk 0:01:29]} 24... e5 {[%clk
0:00:18.8]} 25. Rf3 {[%clk 0:01:00.3]} 25... Bxa1 {[%clk 0:00:13.7]} 26. Qh5+
{[%clk 0:01:00]} 26... Kf6 {[%clk 0:00:09.1]} 27. Rg3 {[%clk 0:00:55.9]} 27...
Rd7 {[%clk 0:00:06.4]} 28. Rg6+ {[%clk 0:00:53.2]} 28... Kf7 {[%clk 0:00:05.3]}
29. Rxc6+ {[%clk 0:00:45.1]} 29... Kg8 {[%clk 0:00:05.4]} 30. Rxc8 {[%clk
0:00:37.5]} 30... Bxc8 {[%clk 0:00:06.3]} 31. Qe8 {[%clk 0:00:37.7]} 1-0

[Event "*** Titled Tuesday Blitz"]
[Site "Chess.com"]
[Date "2021.02.09"]
[Round "2"]
[White "ohajek96"]
[Black "Legendinunknown"]
[Result "0-1"]
[WhiteElo "2256"]
[BlackElo "2610"]
[TimeControl "180+1"]
[EndTime "10:17:43 PST"]
[Termination "Legendinunknown won on time"]

1. e4 {[%clk 0:03:00.1]} 1... e5 {[%clk 0:02:55.1]} 2. Nf3 {[%clk 0:03:00.4]}
2... Nc6 {[%clk 0:02:52.9]} 3. Bb5 {[%clk 0:03:00.9]} 3... a6 {[%clk 0:02:52.1]}
4. Bxc6 {[%clk 0:03:00.1]} 4... dxc6 {[%clk 0:02:50.9]} 5. Nc3 {[%clk
0:03:00.7]} 5... f6 {[%clk 0:02:50.3]} 6. d4 {[%clk 0:03:01.1]} 6... exd4 {[%clk
0:02:51.2]} 7. Qxd4 {[%clk 0:03:01.5]} 7... Qxd4 {[%clk 0:02:50.8]} 8. Nxd4
{[%clk 0:03:02.4]} 8... Bd7 {[%clk 0:02:48.9]} 9. Be3 {[%clk 0:03:02.9]} 9...
O-O-O {[%clk 0:02:49.2]} 10. O-O-O {[%clk 0:02:59.3]} 10... Bd6 {[%clk
0:02:48.9]} 11. Nb3 {[%clk 0:02:56.6]} 11... Ne7 {[%clk 0:02:42.4]} 12. Nc5
{[%clk 0:02:53.6]} 12... Ng6 {[%clk 0:02:39.4]} 13. Nxd7 {[%clk 0:02:48.2]}
13... Rxd7 {[%clk 0:02:40.3]} 14. f3 {[%clk 0:02:40]} 14... Rhd8 {[%clk
0:02:32.1]} 15. Ne2 {[%clk 0:02:21.7]} 15... Nh4 {[%clk 0:02:24.9]} 16. Rhg1
{[%clk 0:02:05.4]} 16... Nxg2 {[%clk 0:01:27]} 17. Rxg2 {[%clk 0:01:11.6]} 17...
Bf4 {[%clk 0:01:16.4]} 18. Rxd7 {[%clk 0:00:09.3]} 18... Bxe3+ {[%clk
0:01:11.8]} 19. Kd1 {[%clk 0:00:07]} 19... Rxd7+ {[%clk 0:01:11.4]} 20. Ke1
{[%clk 0:00:07.6]} 20... Rd2 {[%clk 0:01:04.2]} 21. Rxg7 {[%clk 0:00:06.2]}
21... Rxc2 {[%clk 0:01:03.8]} 22. Rxh7 {[%clk 0:00:05.7]} 22... Rxb2 {[%clk
0:00:59.8]} 23. Kf1 {[%clk 0:00:04.1]} 23... Rxa2 {[%clk 0:00:54.9]} 24. h4
{[%clk 0:00:04.2]} 24... b5 {[%clk 0:00:49.1]} 25. h5 {[%clk 0:00:04]} 25... b4
{[%clk 0:00:49.1]} 26. h6 {[%clk 0:00:04.6]} 26... Kb7 {[%clk 0:00:45.7]} 27.
Rh8 {[%clk 0:00:04.2]} 27... Bxh6 {[%clk 0:00:33]} 28. Rxh6 {[%clk 0:00:04]}
28... b3 {[%clk 0:00:33.4]} 0-1

[Event "*** Titled Tuesday Blitz"]
[Site "Chess.com"]
[Date "2021.02.09"]
[Round "2"]
[White "KNCP_719"]
[Black "pavlitas17"]
[Result "1-0"]
[WhiteElo "2595"]
[BlackElo "2312"]
[TimeControl "180+1"]
[EndTime "10:17:44 PST"]
[Termination "KNCP_719 won by checkmate"]

1. e4 {[%clk 0:03:00.9]} 1... c5 {[%clk 0:02:59.7]} 2. b3 {[%clk 0:03:01]} 2...
Nf6 {[%clk 0:02:56.8]} 3. e5 {[%clk 0:03:00.7]} 3... Nd5 {[%clk 0:02:57]} 4. Bb2
{[%clk 0:03:01.4]} 4... Nc6 {[%clk 0:02:56.9]} 5. Nf3 {[%clk 0:03:01.6]} 5... d6
{[%clk 0:02:57.1]} 6. Bb5 {[%clk 0:03:01.6]} 6... Bd7 {[%clk 0:02:55.9]} 7. Bxc6
{[%clk 0:03:01.6]} 7... Bxc6 {[%clk 0:02:55.6]} 8. exd6 {[%clk 0:03:02.2]} 8...
Qxd6 {[%clk 0:02:55.5]} 9. O-O {[%clk 0:03:03.1]} 9... e6 {[%clk 0:02:54.8]} 10.
Nc3 {[%clk 0:03:02.7]} 10... Nxc3 {[%clk 0:02:54.4]} 11. Bxc3 {[%clk 0:03:03.6]}
11... O-O-O {[%clk 0:02:54.3]} 12. Re1 {[%clk 0:03:03.8]} 12... Be7 {[%clk
0:02:54.2]} 13. a4 {[%clk 0:03:01.8]} 13... f6 {[%clk 0:02:53.1]} 14. Qe2 {[%clk
0:03:01.4]} 14... e5 {[%clk 0:02:52.4]} 15. d3 {[%clk 0:03:01.4]} 15... Qd7
{[%clk 0:02:50.6]} 16. a5 {[%clk 0:02:58]} 16... g5 {[%clk 0:02:50.2]} 17. Nd2
{[%clk 0:02:57.7]} 17... h5 {[%clk 0:02:48]} 18. Reb1 {[%clk 0:02:47.2]} 18...
h4 {[%clk 0:02:45.8]} 19. b4 {[%clk 0:02:42.6]} 19... g4 {[%clk 0:02:45.7]} 20.
Ne4 {[%clk 0:02:25.7]} 20... h3 {[%clk 0:02:30.2]} 21. bxc5 {[%clk 0:01:55.3]}
21... hxg2 {[%clk 0:02:25.9]} 22. a6 {[%clk 0:01:54.7]} 22... f5 {[%clk
0:02:20]} 23. axb7+ {[%clk 0:00:48.4]} 23... Bxb7 {[%clk 0:02:19.7]} 24. Rxa7
{[%clk 0:00:42.4]} 24... fxe4 {[%clk 0:02:19.5]} 25. Raxb7 {[%clk 0:00:36.9]}
25... Qxb7 {[%clk 0:01:52.9]} 26. Rxb7 {[%clk 0:00:37.8]} 26... Kxb7 {[%clk
0:01:53.2]} 27. Qxe4+ {[%clk 0:00:36.3]} 27... Ka7 {[%clk 0:01:31.9]} 28. Qa4+
{[%clk 0:00:15.6]} 28... Kb7 {[%clk 0:01:30.8]} 29. Qb5+ {[%clk 0:00:13.9]}
29... Ka7 {[%clk 0:01:30.2]} 30. Qb6+ {[%clk 0:00:10.4]} 30... Ka8 {[%clk
0:01:30.2]} 31. Qc6+ {[%clk 0:00:10.4]} 31... Ka7 {[%clk 0:01:29.9]} 32. Qc7+
{[%clk 0:00:10.3]} 32... Ka8 {[%clk 0:01:28.8]} 33. Qxe7 {[%clk 0:00:10.6]}
33... Rhe8 {[%clk 0:01:23.9]} 34. Qc7 {[%clk 0:00:09.8]} 34... Rc8 {[%clk
0:01:24]} 35. Qa5+ {[%clk 0:00:09.4]} 35... Kb7 {[%clk 0:01:24]} 36. Qb5+ {[%clk
0:00:09.8]} 36... Ka8 {[%clk 0:01:23.7]} 37. Qa6+ {[%clk 0:00:09.8]} 37... Kb8
{[%clk 0:01:23.4]} 38. Qb6+ {[%clk 0:00:08.8]} 38... Ka8 {[%clk 0:01:23.4]} 39.
Kxg2 {[%clk 0:00:08]} 39... e4 {[%clk 0:01:21.3]} 40. c6 {[%clk 0:00:07.7]}
40... Re7 {[%clk 0:01:18.2]} 41. d4 {[%clk 0:00:07.5]} 41... Rb8 {[%clk
0:01:12.8]} 42. Qc5 {[%clk 0:00:06.5]} 42... Ra7 {[%clk 0:01:13.7]} 43. d5
{[%clk 0:00:06.1]} 43... Ra2 {[%clk 0:01:12.8]} 44. d6 {[%clk 0:00:06.1]} 44...
Rxc2 {[%clk 0:01:12.4]} 45. Qa5# {[%clk 0:00:06.3]} 1-0

[Event "*** Titled Tuesday Blitz"]
[Site "Chess.com"]
[Date "2021.02.09"]
[Round "2"]
[White "Mr_Sinigami"]
[Black "Happy1712Drummer"]
[Result "1-0"]
[WhiteElo "2647"]
[BlackElo "2366"]
[TimeControl "180+1"]
[EndTime "10:17:45 PST"]
[Termination "Mr_Sinigami won by resignation"]

1. d4 {[%clk 0:02:59]} 1... Nf6 {[%clk 0:02:59.9]} 2. Nf3 {[%clk 0:02:58.6]}
2... g6 {[%clk 0:03:00.3]} 3. Bf4 {[%clk 0:02:58.9]} 3... Bg7 {[%clk 0:03:00.6]}
4. e3 {[%clk 0:02:59.3]} 4... O-O {[%clk 0:03:00.6]} 5. h3 {[%clk 0:02:59.5]}
5... d6 {[%clk 0:03:00.9]} 6. Be2 {[%clk 0:02:59.2]} 6... c5 {[%clk 0:02:59.7]}
7. c3 {[%clk 0:02:59]} 7... Qb6 {[%clk 0:02:35.7]} 8. Qb3 {[%clk 0:02:54.6]}
8... Be6 {[%clk 0:02:34.5]} 9. Qa3 {[%clk 0:02:54.1]} 9... Nc6 {[%clk
0:02:01.7]} 10. Nbd2 {[%clk 0:02:52.1]} 10... cxd4 {[%clk 0:01:55.4]} 11. exd4
{[%clk 0:02:51.4]} 11... Nd5 {[%clk 0:01:46.1]} 12. Bh2 {[%clk 0:02:48.7]} 12...
Bh6 {[%clk 0:01:44.2]} 13. Nc4 {[%clk 0:02:42.2]} 13... Qc7 {[%clk 0:01:37.1]}
14. O-O {[%clk 0:02:40.2]} 14... b5 {[%clk 0:01:01.2]} 15. Ncd2 {[%clk
0:02:23.7]} 15... Rab8 {[%clk 0:01:01.4]} 16. Rac1 {[%clk 0:02:04.8]} 16... Nf4
{[%clk 0:00:54.1]} 17. Bxf4 {[%clk 0:02:03.7]} 17... Bxf4 {[%clk 0:00:55]} 18.
b3 {[%clk 0:01:56.1]} 18... Qb6 {[%clk 0:00:50.7]} 19. Qb2 {[%clk 0:01:52.8]}
19... a5 {[%clk 0:00:44.9]} 20. Rcd1 {[%clk 0:01:44]} 20... b4 {[%clk
0:00:43.6]} 21. c4 {[%clk 0:01:42.6]} 21... Bf5 {[%clk 0:00:35.5]} 22. Rfe1
{[%clk 0:01:35.1]} 22... a4 {[%clk 0:00:34.7]} 23. d5 {[%clk 0:01:13.4]} 23...
a3 {[%clk 0:00:28.7]} 24. Qa1 {[%clk 0:01:13.2]} 24... Ne5 {[%clk 0:00:27.8]}
25. Nd4 {[%clk 0:01:12.4]} 25... Bd7 {[%clk 0:00:27.2]} 26. Nf1 {[%clk
0:01:01.4]} 26... Bh6 {[%clk 0:00:24.4]} 27. Qb1 {[%clk 0:01:00.8]} 27... Rfe8
{[%clk 0:00:22.2]} 28. Ng3 {[%clk 0:00:59.1]} 28... f5 {[%clk 0:00:21.2]} 29.
Bf1 {[%clk 0:00:53.2]} 29... Bg7 {[%clk 0:00:19.8]} 30. Nge2 {[%clk 0:00:48.9]}
30... Qc5 {[%clk 0:00:19.4]} 31. Nf4 {[%clk 0:00:48]} 31... Nxc4 {[%clk
0:00:17.7]} 32. Nde6 {[%clk 0:00:47.6]} 32... Bxe6 {[%clk 0:00:13.5]} 33. Nxe6
{[%clk 0:00:47.5]} 33... Nd2 {[%clk 0:00:08.4]} 34. Rxd2 {[%clk 0:00:47.2]}
34... Qc3 {[%clk 0:00:09.3]} 35. Rc2 {[%clk 0:00:43.1]} 1-0

[Event "*** Titled Tuesday Blitz"]
[Site "Chess.com"]
[Date "2021.02.09"]
[Round "2"]
[White "PSvidler"]
[Black "OriTaichman"]
[Result "1-0"]
[WhiteElo "2882"]
[BlackElo "2531"]
[TimeControl "180+1"]
[EndTime "10:17:47 PST"]
[Termination "PSvidler won by resignation"]

1. e4 {[%clk 0:03:00.9]} 1... c5 {[%clk 0:02:58.9]} 2. Nf3 {[%clk 0:02:59.1]}
2... Nc6 {[%clk 0:02:59.1]} 3. Bb5 {[%clk 0:02:57.9]} 3... d6 {[%clk 0:02:59.1]}
4. O-O {[%clk 0:02:55]} 4... Bd7 {[%clk 0:02:57.5]} 5. Re1 {[%clk 0:02:54]} 5...
Nf6 {[%clk 0:02:57.5]} 6. c3 {[%clk 0:02:52.6]} 6... a6 {[%clk 0:02:57.7]} 7.
Bf1 {[%clk 0:02:51.9]} 7... Bg4 {[%clk 0:02:57.4]} 8. d4 {[%clk 0:02:50.3]} 8...
Bxf3 {[%clk 0:02:56.5]} 9. gxf3 {[%clk 0:02:43.8]} 9... e5 {[%clk 0:02:56.5]}
10. d5 {[%clk 0:02:37.3]} 10... Ne7 {[%clk 0:02:56.5]} 11. f4 {[%clk 0:02:31.3]}
11... Ng6 {[%clk 0:02:54.5]} 12. f5 {[%clk 0:02:27.4]} 12... Ne7 {[%clk
0:02:37.5]} 13. Bg5 {[%clk 0:02:20.7]} 13... Nc8 {[%clk 0:01:44.2]} 14. a4
{[%clk 0:02:14.1]} 14... Be7 {[%clk 0:01:43.8]} 15. a5 {[%clk 0:02:05.6]} 15...
Nd7 {[%clk 0:01:35.9]} 16. Be3 {[%clk 0:02:02.2]} 16... Bg5 {[%clk 0:01:35]} 17.
Nd2 {[%clk 0:02:01.8]} 17... Bxe3 {[%clk 0:01:33.5]} 18. Rxe3 {[%clk 0:02:01.4]}
18... g5 {[%clk 0:01:26.6]} 19. Nc4 {[%clk 0:01:57.3]} 19... h5 {[%clk
0:00:54.4]} 20. b4 {[%clk 0:01:47.7]} 20... Ke7 {[%clk 0:00:49.2]} 21. Rb1
{[%clk 0:01:46.1]} 21... b5 {[%clk 0:00:40.1]} 22. axb6 {[%clk 0:01:44.8]} 22...
Ncxb6 {[%clk 0:00:38.8]} 23. Na5 {[%clk 0:01:44.5]} 23... Kf6 {[%clk 0:00:34.8]}
24. Nc6 {[%clk 0:01:42.1]} 24... Qc7 {[%clk 0:00:34.1]} 25. Rg3 {[%clk
0:01:37.1]} 25... h4 {[%clk 0:00:20.3]} 26. Re3 {[%clk 0:01:22.6]} 26... g4
{[%clk 0:00:11.2]} 27. Be2 {[%clk 0:01:20.4]} 27... Rhg8 {[%clk 0:00:08]} 28.
Bxg4 {[%clk 0:01:17.4]} 28... Rg5 {[%clk 0:00:08.2]} 29. h3 {[%clk 0:01:16.5]}
29... Nc4 {[%clk 0:00:06.3]} 30. Rd3 {[%clk 0:01:11.4]} 30... a5 {[%clk
0:00:06.1]} 31. bxa5 {[%clk 0:01:07.5]} 31... Nxa5 {[%clk 0:00:07]} 32. Ra1
{[%clk 0:01:06.6]} 32... Nxc6 {[%clk 0:00:06.8]} 33. Rxa8 {[%clk 0:01:05.7]}
33... Nd8 {[%clk 0:00:06.5]} 34. Rd2 {[%clk 0:01:04.8]} 34... Ke7 {[%clk
0:00:06]} 35. Rda2 {[%clk 0:01:04.4]} 35... Nb7 {[%clk 0:00:05.2]} 36. Qb1
{[%clk 0:01:00.7]} 36... c4 {[%clk 0:00:05]} 37. R2a7 {[%clk 0:00:58.9]} 37...
Ndc5 {[%clk 0:00:05.4]} 38. Rxb7 {[%clk 0:00:58.8]} 38... Qxb7 {[%clk
0:00:05.4]} 39. Qxb7+ {[%clk 0:00:58.2]} 39... Nxb7 {[%clk 0:00:06.3]} 40. Ra7
{[%clk 0:00:59.1]} 40... Kf6 {[%clk 0:00:05.1]} 41. Rxb7 {[%clk 0:00:58.9]} 1-0

[Event "*** Titled Tuesday Blitz"]
[Site "Chess.com"]
[Date "2021.02.09"]
[Round "2"]
[White "karinachess1"]
[Black "Arseniy_Nesterov"]
[Result "0-1"]
[WhiteElo "2514"]
[BlackElo "2823"]
[TimeControl "180+1"]
[EndTime "10:17:47 PST"]
[Termination "Arseniy_Nesterov won by checkmate"]

1. c4 {[%clk 0:03:00.9]} 1... e5 {[%clk 0:02:59.8]} 2. Nc3 {[%clk 0:03:00.2]}
2... Bb4 {[%clk 0:02:59.4]} 3. Qc2 {[%clk 0:02:59.8]} 3... Nc6 {[%clk
0:02:56.5]} 4. Nf3 {[%clk 0:02:59.3]} 4... d6 {[%clk 0:02:55.3]} 5. Nd5 {[%clk
0:02:53.9]} 5... Bc5 {[%clk 0:02:54.5]} 6. e3 {[%clk 0:02:47.6]} 6... Nge7
{[%clk 0:02:48.1]} 7. a3 {[%clk 0:02:38.8]} 7... Nxd5 {[%clk 0:02:42.9]} 8. cxd5
{[%clk 0:02:38.9]} 8... Ne7 {[%clk 0:02:43.3]} 9. Bc4 {[%clk 0:02:28.8]} 9...
O-O {[%clk 0:02:35.9]} 10. O-O {[%clk 0:02:27.6]} 10... Bg4 {[%clk 0:02:31.4]}
11. Ng5 {[%clk 0:01:53.5]} 11... Ng6 {[%clk 0:02:27.4]} 12. Ne4 {[%clk
0:01:49.1]} 12... Bb6 {[%clk 0:02:27.1]} 13. h3 {[%clk 0:01:37.1]} 13... Bd7
{[%clk 0:02:23]} 14. Nc3 {[%clk 0:01:29.5]} 14... f5 {[%clk 0:02:19]} 15. a4
{[%clk 0:01:15.4]} 15... a6 {[%clk 0:02:12.1]} 16. a5 {[%clk 0:00:58.1]} 16...
Ba7 {[%clk 0:02:10.5]} 17. Bd3 {[%clk 0:00:45]} 17... Nh4 {[%clk 0:02:01.3]} 18.
f4 {[%clk 0:00:27.5]} 18... exf4 {[%clk 0:01:48]} 19. Rxf4 {[%clk 0:00:27.6]}
19... Qg5 {[%clk 0:01:47.2]} 20. Rf2 {[%clk 0:00:27.6]} 20... f4 {[%clk
0:01:28.4]} 21. Ne4 {[%clk 0:00:26.8]} 21... Qh6 {[%clk 0:01:20.6]} 22. Qxc7
{[%clk 0:00:26.7]} 22... fxe3 {[%clk 0:01:00.3]} 23. dxe3 {[%clk 0:00:25.6]}
23... Rxf2 {[%clk 0:00:54.5]} 24. Nxf2 {[%clk 0:00:23.6]} 24... Qg5 {[%clk
0:00:48.9]} 25. Bf1 {[%clk 0:00:23.8]} 25... Qg3 {[%clk 0:00:21.8]} 26. Ne4
{[%clk 0:00:15.6]} 26... Nf3+ {[%clk 0:00:20.7]} 27. Kh1 {[%clk 0:00:08]} 27...
Qh2# {[%clk 0:00:21.6]} 0-1

[Event "*** Titled Tuesday Blitz"]
[Site "Chess.com"]
[Date "2021.02.09"]
[Round "2"]
[White "Etud-otradnoe"]
[Black "Fighter008"]
[Result "0-1"]
[WhiteElo "2307"]
[BlackElo "2578"]
[TimeControl "180+1"]
[EndTime "10:17:47 PST"]
[Termination "Fighter008 won on time"]

1. e4 {[%clk 0:03:00.9]} 1... c5 {[%clk 0:02:40.9]} 2. c3 {[%clk 0:02:59.5]}
2... Nf6 {[%clk 0:02:39.8]} 3. e5 {[%clk 0:02:58.4]} 3... Nd5 {[%clk 0:02:40]}
4. d4 {[%clk 0:02:57.9]} 4... cxd4 {[%clk 0:02:40.1]} 5. Nf3 {[%clk 0:02:57.1]}
5... d6 {[%clk 0:02:39.2]} 6. cxd4 {[%clk 0:02:52.6]} 6... Nc6 {[%clk
0:02:39.3]} 7. Bc4 {[%clk 0:02:47.4]} 7... Nb6 {[%clk 0:02:39.2]} 8. Bb5 {[%clk
0:02:46.8]} 8... d5 {[%clk 0:02:39.5]} 9. Nh4 {[%clk 0:02:46.3]} 9... e6 {[%clk
0:02:30.7]} 10. Nf3 {[%clk 0:02:44.9]} 10... Bd7 {[%clk 0:02:29.9]} 11. Nc3
{[%clk 0:02:42.2]} 11... Na5 {[%clk 0:02:23.5]} 12. Bd3 {[%clk 0:02:34.4]} 12...
Be7 {[%clk 0:02:23.4]} 13. h4 {[%clk 0:02:30.8]} 13... h6 {[%clk 0:02:22.2]} 14.
h5 {[%clk 0:02:30.3]} 14... Nc6 {[%clk 0:02:20.1]} 15. Rh3 {[%clk 0:02:27.6]}
15... Nb4 {[%clk 0:02:16]} 16. Bb1 {[%clk 0:02:23.8]} 16... Rc8 {[%clk
0:02:12.5]} 17. Rg3 {[%clk 0:02:19.2]} 17... Bf8 {[%clk 0:02:12.6]} 18. Qd2
{[%clk 0:01:56.4]} 18... Nc4 {[%clk 0:02:11.2]} 19. Qf4 {[%clk 0:01:56.1]} 19...
Qe7 {[%clk 0:01:52.9]} 20. Kf1 {[%clk 0:01:30]} 20... Kd8 {[%clk 0:01:51.3]} 21.
Ng1 {[%clk 0:00:27]} 21... Kc7 {[%clk 0:01:39.7]} 22. Nge2 {[%clk 0:00:26.1]}
22... Kb8 {[%clk 0:01:39.1]} 23. Rf3 {[%clk 0:00:22.6]} 23... Be8 {[%clk
0:01:37.6]} 24. g4 {[%clk 0:00:21]} 24... Ka8 {[%clk 0:01:36.4]} 25. Kg2 {[%clk
0:00:20.9]} 25... Rg8 {[%clk 0:01:20.7]} 26. b3 {[%clk 0:00:20.7]} 26... Nb6
{[%clk 0:01:18.9]} 27. a3 {[%clk 0:00:20.6]} 27... Na6 {[%clk 0:01:18.3]} 28.
Ra2 {[%clk 0:00:19.7]} 28... Qd8 {[%clk 0:01:12.9]} 29. Bh7 {[%clk 0:00:11.9]}
29... Rh8 {[%clk 0:01:12.2]} 30. Bd3 {[%clk 0:00:11.5]} 30... Be7 {[%clk
0:01:11.9]} 31. Rc2 {[%clk 0:00:10.4]} 31... Nb8 {[%clk 0:01:05.9]} 32. Qd2
{[%clk 0:00:06.8]} 32... a6 {[%clk 0:01:04.2]} 33. Bb2 {[%clk 0:00:05.5]} 33...
Nc6 {[%clk 0:01:04.1]} 34. Qc1 {[%clk 0:00:04.8]} 34... g5 {[%clk 0:01:01.5]}
35. b4 {[%clk 0:00:03.6]} 35... f6 {[%clk 0:01:00.1]} 36. exf6 {[%clk
0:00:02.7]} 36... Bxf6 {[%clk 0:01:00]} 0-1

[Event "*** Titled Tuesday Blitz"]
[Site "Chess.com"]
[Date "2021.02.09"]
[Round "2"]
[White "yoelpolanco"]
[Black "SanQui14"]
[Result "0-1"]
[WhiteElo "2212"]
[BlackElo "2443"]
[TimeControl "180+1"]
[EndTime "10:17:47 PST"]
[Termination "SanQui14 won on time"]

1. d4 {[%clk 0:03:00.9]} 1... Nf6 {[%clk 0:02:58.6]} 2. c4 {[%clk 0:03:01.2]}
2... e6 {[%clk 0:02:57.9]} 3. Nc3 {[%clk 0:03:01.3]} 3... Bb4 {[%clk 0:02:58]}
4. Qc2 {[%clk 0:03:01.7]} 4... b6 {[%clk 0:02:58.2]} 5. a3 {[%clk 0:03:01.7]}
5... Bxc3+ {[%clk 0:02:57.4]} 6. Qxc3 {[%clk 0:03:02.6]} 6... Bb7 {[%clk
0:02:57.5]} 7. Bg5 {[%clk 0:03:02.5]} 7... h6 {[%clk 0:02:57.5]} 8. Bh4 {[%clk
0:03:02]} 8... g5 {[%clk 0:02:58.1]} 9. Bg3 {[%clk 0:03:01.9]} 9... Ne4 {[%clk
0:02:57.8]} 10. Qc2 {[%clk 0:03:01.8]} 10... d6 {[%clk 0:02:57.9]} 11. e3 {[%clk
0:03:01.6]} 11... h5 {[%clk 0:02:56.5]} 12. f3 {[%clk 0:03:00]} 12... Nxg3
{[%clk 0:02:52.4]} 13. hxg3 {[%clk 0:03:00.9]} 13... Qf6 {[%clk 0:02:48.4]} 14.
Bd3 {[%clk 0:02:58.6]} 14... Nd7 {[%clk 0:02:40.8]} 15. Be4 {[%clk 0:02:57.8]}
15... Bxe4 {[%clk 0:02:33.2]} 16. Qxe4 {[%clk 0:02:58.7]} 16... Ke7 {[%clk
0:02:33.3]} 17. Ne2 {[%clk 0:02:57.3]} 17... c5 {[%clk 0:02:32.7]} 18. O-O-O
{[%clk 0:02:49.2]} 18... cxd4 {[%clk 0:02:24.2]} 19. Rxd4 {[%clk 0:02:48.2]}
19... Rac8 {[%clk 0:02:22]} 20. Rhd1 {[%clk 0:02:45.2]} 20... d5 {[%clk
0:02:15.1]} 21. Rxd5 {[%clk 0:02:39.9]} 21... Nc5 {[%clk 0:01:59.1]} 22. Qe5
{[%clk 0:02:39.5]} 22... Qxe5 {[%clk 0:01:44.1]} 23. Rxe5 {[%clk 0:02:40.4]}
23... f6 {[%clk 0:01:44.7]} 24. Rxc5 {[%clk 0:02:36.1]} 24... Rxc5 {[%clk
0:01:45.6]} 25. Nc3 {[%clk 0:02:29.6]} 25... Rxc4 {[%clk 0:01:44.2]} 26. Kb1
{[%clk 0:02:29]} 26... Rd8 {[%clk 0:01:38]} 27. Rh1 {[%clk 0:02:26.8]} 27... h4
{[%clk 0:01:37.9]} 28. gxh4 {[%clk 0:02:26]} 28... Rxh4 {[%clk 0:01:37.6]} 29.
Rc1 {[%clk 0:02:15.9]} 29... Rd2 {[%clk 0:01:27.2]} 30. Ne4 {[%clk 0:02:12.5]}
30... Rxg2 {[%clk 0:01:25.2]} 31. Rc7+ {[%clk 0:02:11.2]} 31... Kf8 {[%clk
0:01:25.1]} 32. Nxf6 {[%clk 0:02:08.2]} 32... Rhh2 {[%clk 0:01:22.6]} 33. Rxa7
{[%clk 0:02:05.6]} 33... Rxb2+ {[%clk 0:01:21.7]} 34. Kc1 {[%clk 0:02:06]} 34...
Rbc2+ {[%clk 0:01:11.8]} 35. Kb1 {[%clk 0:02:02.5]} 35... Rcf2 {[%clk 0:01:10]}
36. Nh7+ {[%clk 0:02:00.4]} 36... Ke8 {[%clk 0:01:08]} 37. Nf6+ {[%clk
0:02:00.7]} 37... Kd8 {[%clk 0:01:08.2]} 38. Rd7+ {[%clk 0:02:00.8]} 38... Kc8
{[%clk 0:01:08.5]} 39. Rd1 {[%clk 0:02:01]} 39... Rxf3 {[%clk 0:01:04.3]} 40.
Ng4 {[%clk 0:01:53.9]} 40... Rg2 {[%clk 0:01:00.2]} 41. Rc1+ {[%clk 0:01:52.8]}
41... Kb7 {[%clk 0:00:59.2]} 42. Rc4 {[%clk 0:01:41.6]} 42... Rf1+ {[%clk
0:00:58.3]} 0-1